fUST/lending_fUST_20250925
["ID","MTS","AMOUNT","RATE_DAILY","PERIOD"]
[387580705,1758773446509,-480.0,0.00022909,2]
[387580707,1758773446518,-480.0,0.00022909,2]
[387580709,1758773446528,-480.0,0.00022909,2]
[387580711,1758773446536,-580.5,0.00022909,2]
[387580713,1758773446546,-849.73,0.00022909,2]
[387580715,1758773446555,-983.78,0.00022909,2]
[387580716,1758773446564,-480.0,0.00022909,2]
[387580717,1758773446574,-2626.32,0.00022909,2]
[387580718,1758773446583,-523.79,0.0002291,2]
[387580719,1758773446593,-637.15,0.0002291,2]
[387580720,1758773446602,-988.94,0.0002291,2]
[387580721,1758773446611,-151.0,0.0002291,7]
[387580722,1758773446620,-151.0,0.0002291,7]
[387580723,1758773446629,-599.68,0.00022911,2]
[387580724,1758773446638,-715.64,0.00022913,2]
[387580725,1758773446647,-480.0,0.00022913,2]
[387580726,1758773446656,-300.0,0.00022971,2]
[387580728,1758773446665,-157.01,0.00023,2]
[387580730,1758773446674,-3058.08350699,0.00023116,2]
[387580732,1758773446683,-762.67,0.00023182,2]
[387580734,1758773446693,-480.0,0.00023182,2]
[387580736,1758773446702,-535.58,0.00023182,2]
[387580738,1758773446711,-652.72,0.00023182,2]
[387580740,1758773446720,-480.0,0.00023182,2]
[387580742,1758773446730,-444.74225738,0.00023182,2]
[387580744,1758773446739,-480.0,0.00023182,2]
[387580746,1758773446748,-750.64,0.00023182,2]
[387580748,1758773446758,-1032.43,0.00023182,2]
[387580750,1758773446767,-525.07877521,0.00023183,2]
[387580752,1758773446776,-480.0,0.00023183,2]
[387580754,1758773446785,-480.0,0.00023183,2]
[387580756,1758773446795,-580.5,0.00023183,2]
[387580758,1758773446805,-849.73,0.00023183,2]
[387580760,1758773446815,-151.0,0.00023183,7]
[387580762,1758773446824,-151.0,0.00023183,7]
[387580764,1758773446833,-163.710445,0.00023183,7]
[387580766,1758773446844,-163.710445,0.00023183,7]
[387580768,1758773446856,-163.710445,0.00023183,7]
[387580779,1758773446948,-163.71045,0.00023183,7]
[387580781,1758773446958,-983.78,0.00023183,2]
[387580783,1758773446967,-295.86,0.00023183,2]
[387580785,1758773446976,-2626.32,0.00023183,2]
[387580787,1758773446985,-523.79,0.00023184,2]
[387580789,1758773446994,-637.15,0.00023184,2]
[387580791,1758773447003,-988.94,0.00023184,2]
[387580793,1758773447012,-599.68,0.00023185,2]
[387580795,1758773447021,-715.64,0.00023187,2]
[387580797,1758773447031,-480.0,0.00023187,2]
[387580799,1758773447040,-150.0,0.000232,2]
[387580801,1758773447050,-1017.18989171,0.0002326,2]
[387580803,1758773447059,-1099.47,0.00023287,2]
[387580805,1758773447068,-196.01921293,0.00023312,2]
[387580807,1758773447077,-929.688,0.0002337,3]
[387580809,1758773447087,-151.0,0.00023392,7]
[387580811,1758773447096,-151.0,0.00023392,7]
[387580813,1758773447106,-150.0,0.00023395,2]
[387580815,1758773447115,-762.67,0.00023456,2]
[387580817,1758773447125,-480.0,0.00023456,2]
[387580818,1758773447134,-535.58,0.00023456,2]
[387580820,1758773447143,-652.72,0.00023456,2]
[387580823,1758773447153,-480.0,0.00023456,2]
[387580825,1758773447162,-480.0,0.00023456,2]
[387580827,1758773447171,-750.64,0.00023456,2]
[387580829,1758773447181,-1032.43,0.00023456,2]
[387580831,1758773447191,-480.0,0.00023457,2]
[387580833,1758773447200,-480.0,0.00023457,2]
[387580835,1758773447209,-580.5,0.00023457,2]
[387580836,1758773447219,-849.73,0.00023457,2]
[387580839,1758773447228,-176.804298,0.00023457,7]
[387580840,1758773447237,-176.804298,0.00023457,7]
[387580842,1758773447247,-176.804298,0.00023457,7]
[387580845,1758773447256,-176.804298,0.00023457,7]
[387580847,1758773447265,-983.78,0.00023457,2]
[387580848,1758773447275,-523.79,0.00023458,2]
[387580851,1758773447284,-637.15,0.00023458,2]
[387580853,1758773447293,-988.94,0.00023458,2]
[387580854,1758773447302,-151.0,0.00023459,7]
[387580856,1758773447312,-599.68,0.00023459,2]
[387580858,1758773447320,-715.64,0.00023461,2]
[387580860,1758773447329,-480.0,0.00023461,2]
[387580862,1758773447340,-1539.97145443,0.00023587,2]
[387580864,1758773447350,-762.67,0.0002373,2]
[387580866,1758773447359,-448.23248801,0.0002373,2]
[387580869,1758773447369,-535.58,0.0002373,2]
[387580871,1758773447378,-652.72,0.0002373,2]
[387580873,1758773447387,-480.0,0.0002373,2]
[387580875,1758773447396,-480.0,0.0002373,2]
[387580877,1758773447406,-750.64,0.0002373,2]
[387580879,1758773447415,-1032.43,0.0002373,2]
[387580881,1758773447424,-480.0,0.00023731,2]
[387580883,1758773447434,-480.0,0.00023731,2]
[387580885,1758773447443,-580.5,0.00023731,2]
[387580887,1758773447452,-849.73,0.00023731,2]
[387580889,1758773447461,-983.78,0.00023731,2]
[387580891,1758773447470,-523.79,0.00023732,2]
[387580892,1758773447479,-637.15,0.00023732,2]
[387580894,1758773447488,-988.94,0.00023732,2]
[387580896,1758773447497,-599.68,0.00023733,2]
[387580898,1758773447507,-715.64,0.00023735,2]
[387580900,1758773447516,-480.0,0.00023735,2]
[387580902,1758773447525,-978.0,0.00023839,2]
[387580904,1758773447535,-2160.0,0.00023839,2]
[387580907,1758773447544,-635.0,0.00023839,2]
[387580909,1758773447553,-410.0,0.00023839,2]
[387580911,1758773447562,-157.01,0.00023848,2]
[387580913,1758773447572,-762.67,0.00024004,2]
[387580915,1758773447581,-535.58,0.00024004,2]
[387580917,1758773447594,-652.72,0.00024004,2]
[387580919,1758773447603,-480.0,0.00024004,2]
[387580921,1758773447613,-480.0,0.00024004,2]
[387580923,1758773447623,-750.64,0.00024004,2]
[387580925,1758773447632,-1032.43,0.00024004,2]
[387580927,1758773447641,-480.0,0.00024005,2]
[387580929,1758773447651,-480.0,0.00024005,2]
[387580931,1758773447660,-580.5,0.00024005,2]
[387580933,1758773447670,-983.78,0.00024005,2]
[387580935,1758773447680,-523.79,0.00024006,2]
[387580937,1758773447689,-637.15,0.00024006,2]
[387580939,1758773447698,-988.94,0.00024006,2]
[387580941,1758773447707,-766.08546502,0.00024007,2]
[387580943,1758773447717,-3061.27751822,0.00024007,2]
[387580945,1758773447726,-320.25503329,0.00024007,2]
[387580947,1758773447735,-599.68,0.00024007,2]
[387580949,1758773447744,-715.64,0.00024009,2]
[387580951,1758773447754,-480.0,0.00024009,2]
[387580953,1758773447763,-3058.08350699,0.00024187,2]
[387580956,1758773447774,-762.67,0.00024278,2]
[387580958,1758773447784,-535.58,0.00024278,2]
[387580959,1758773447794,-652.72,0.00024278,2]
[387580961,1758773447803,-480.0,0.00024278,2]
[387580963,1758773447812,-480.0,0.00024278,2]
[387580965,1758773447822,-750.64,0.00024278,2]
[387580968,1758773447832,-1032.43,0.00024278,2]
[387580970,1758773447843,-480.0,0.00024279,2]
[387580971,1758773447854,-480.0,0.00024279,2]
[387580973,1758773447863,-580.5,0.00024279,2]
[387580976,1758773447873,-983.78,0.00024279,2]
[387580977,1758773447882,-523.79,0.0002428,2]
[387580980,1758773447891,-637.15,0.0002428,2]
[387580982,1758773447901,-988.94,0.0002428,2]
[387580984,1758773447910,-599.68,0.00024281,2]
[387580985,1758773447919,-151.0,0.00024282,7]
[387580987,1758773447929,-715.64,0.00024283,2]
[387580989,1758773447939,-480.0,0.00024283,2]
[387580991,1758773447948,-1002.575568,0.000243,2]
[387580993,1758773447957,-192.625635,0.000243,2]
[387580995,1758773447966,-308.86733896,0.00024321,2]
[387580997,1758773447975,-637.17078595,0.00024335,2]
[387580999,1758773447984,-194.0,0.00024335,2]
[387581001,1758773447993,-264.3,0.00024356,4]
[387581003,1758773448003,-216.87999059,0.00024356,13]
[387581006,1758773448012,-161.2074619,0.00024361,5]
[387581007,1758773448022,-266.6344862,0.00024384,2]
[387581010,1758773448032,-152.158349,0.00024384,7]
[387581011,1758773448041,-2565.98,0.000244,2]
[387581013,1758773448051,-718.5809623,0.00024466,2]
[387581016,1758773448063,-245.0,0.00024514,2]
[387581017,1758773448072,-800.0,0.00024523,2]
[387581019,1758773448081,-762.67,0.00024552,2]
[387581021,1758773448091,-535.58,0.00024552,2]
[387581023,1758773448100,-652.72,0.00024552,2]
[387581025,1758773448109,-480.0,0.00024552,2]
[387581027,1758773448119,-273.46316739,0.00024552,2]
[387581030,1758773448129,-750.64,0.00024552,2]
[387581031,1758773448138,-1032.43,0.00024552,2]
[387581034,1758773448149,-480.0,0.00024553,2]
[387581036,1758773448158,-222.2854205,0.00024553,2]
[387581037,1758773448167,-580.5,0.00024553,2]
[387581040,1758773448177,-983.78,0.00024553,2]
[387581042,1758773448188,-523.79,0.00024554,2]
[387581043,1758773448197,-637.15,0.00024554,2]
[387581046,1758773448207,-988.94,0.00024554,2]
[387581048,1758773448216,-599.68,0.00024555,2]
[387581049,1758773448225,-715.64,0.00024557,2]
[387581051,1758773448235,-480.0,0.00024557,2]
[387581053,1758773448244,-168.0,0.0002458,2]
[387581056,1758773448253,-9971.68120309,0.0002465,2]
[387581058,1758773448263,-150.0,0.00024658,2]
[387581060,1758773448273,-151.0,0.00024658,7]
[387581062,1758773448284,-152.333578,0.00024658,7]
[387581064,1758773448294,-500.0,0.00024658,2]
[387581066,1758773448304,-194.0,0.00024659,2]
[387581068,1758773448314,-800.0,0.00024698,2]
[387581070,1758773448323,-194.0,0.00024738,2]
[387581072,1758773448333,-157.01,0.00024772,2]
[387581074,1758773448343,-756.56,0.0002478,2]
[387581076,1758773448353,-168.0,0.00024787,2]
[387581078,1758773448363,-151.0,0.000248,7]
[387581080,1758773448372,-151.0,0.000248,7]
[387581082,1758773448382,-151.0,0.000248,7]
[387581084,1758773448391,-176.804298,0.000248,7]
[387581086,1758773448401,-176.804298,0.000248,7]
[387581088,1758773448410,-176.804298,0.000248,7]
[387581090,1758773448419,-176.804307,0.000248,7]
[387581092,1758773448428,-3275.4198164,0.00024817,2]
[387581094,1758773448438,-762.67,0.00024826,2]
[387581096,1758773448448,-535.58,0.00024826,2]
[387581098,1758773448458,-652.72,0.00024826,2]
[387581100,1758773448468,-460.9958567,0.00024826,2]
[387581102,1758773448476,-750.64,0.00024826,2]
[387581104,1758773448486,-1032.43,0.00024826,2]
[387581106,1758773448495,-480.0,0.00024827,2]
[387581108,1758773448505,-580.5,0.00024827,2]
[387581110,1758773448514,-983.78,0.00024827,2]
[387581112,1758773448523,-523.79,0.00024828,2]
[387581114,1758773448532,-637.15,0.00024828,2]
[387581116,1758773448541,-988.94,0.00024828,2]
[387581118,1758773448551,-599.68,0.00024829,2]
[387581120,1758773448560,-715.64,0.00024831,2]
[387581122,1758773448569,-245.0,0.0002486,2]
[387581124,1758773448579,-500.5620322,0.00024873,2]
[387581126,1758773448590,-168.63354543,0.00024899,2]
[387581128,1758773448599,-242.36645541,0.000249,2]
[387581130,1758773448609,-272.29195058,0.000249,2]
[387581132,1758773448619,-151.0,0.000249,7]
[387581133,1758773448628,-164.742569,0.000249,7]
[387581134,1758773448637,-151.0,0.000249,7]
[387581135,1758773448646,-227.7277,0.000249,7]
[387581136,1758773448655,-264114.74310403,0.000249,2]
[387581137,1758773448717,-13549.0071506,0.000249,2]
[387581206,1758773450478,-487.666028,0.00019347,2]
[387581207,1758773450488,-160.0,0.00021796,2]
[387581208,1758773450498,-233.66602051,0.00021796,2]
[387581209,1758773450508,-2626.32,0.00023457,2]
[387581210,1758773450520,-2626.32,0.00023731,2]
[387581211,1758773450530,-26082.12241019,0.000249,2]
[387581212,1758773450541,-11181.729401,0.000249,2]
[387581213,1758773450553,-272215.81116318,0.000249,2]
[387581214,1758773450562,-245.0,0.00024917,2]
[387581215,1758773450577,-500.0,0.00024932,2]
[387581216,1758773450587,-168.0,0.00024995,2]
[387581217,1758773450598,-1014.40402169,0.00025,2]
[387581218,1758773450609,-503.01282799,0.00025,5]
[387581219,1758773450621,-168.0,0.00025034,2]
[387581220,1758773450631,-168.0,0.00025084,2]
[387581221,1758773450641,-762.67,0.000251,2]
[387581222,1758773450651,-535.58,0.000251,2]
[387581223,1758773450660,-652.72,0.000251,2]
[387581224,1758773450669,-750.64,0.000251,2]
[387581225,1758773450679,-1032.43,0.000251,2]
[387581226,1758773450688,-480.0,0.00025101,2]
[387581227,1758773450697,-580.5,0.00025101,2]
[387581228,1758773450707,-983.78,0.00025101,2]
[387581229,1758773450717,-523.79,0.00025102,2]
[387581230,1758773450726,-637.15,0.00025102,2]
[387581231,1758773450738,-988.94,0.00025102,2]
[387581232,1758773450747,-176.90719897,0.00025103,30]
[387581233,1758773450756,-599.68,0.00025103,2]
[387581234,1758773450766,-715.64,0.00025105,2]
[387581235,1758773450775,-168.0,0.00025135,2]
[387581236,1758773450785,-168.0,0.00025149,2]
[387581237,1758773450794,-168.0,0.00025197,2]
[387581238,1758773450803,-500.0,0.00025205,7]
[387581239,1758773450813,-500.0,0.00025205,7]
[387581240,1758773450822,-500.0,0.00025205,7]
[387581241,1758773450832,-500.0,0.00025205,7]
[387581242,1758773450841,-500.0,0.00025205,7]
[387581243,1758773450855,-269.12374106,0.00025205,7]
[387581244,1758773450865,-1099.47,0.00025205,4]
[387581245,1758773450875,-150.42966838,0.00025205,2]
[387581246,1758773450884,-502.68613191,0.00025206,2]
[387581247,1758773450895,-245.0,0.00025226,2]
[387581248,1758773450905,-3058.08350699,0.00025259,3]
[387581249,1758773450914,-245.0,0.00025357,2]
[387581250,1758773450924,-762.67,0.00025374,2]
[387581251,1758773450935,-535.58,0.00025374,2]
[387581252,1758773450944,-652.72,0.00025374,2]
[387581253,1758773450954,-750.64,0.00025374,2]
[387581254,1758773450963,-1032.43,0.00025374,2]
[387581255,1758773450973,-292.77920618,0.00025375,2]
[387581256,1758773450983,-580.5,0.00025375,2]
[387581257,1758773450992,-983.78,0.00025375,2]
[387581258,1758773451002,-523.79,0.00025376,2]
[387581259,1758773451011,-637.15,0.00025376,2]
[387581260,1758773451020,-988.94,0.00025376,2]
[387581261,1758773451030,-599.68,0.00025377,2]
[387581262,1758773451039,-715.64,0.00025379,2]
[387581263,1758773451049,-250.0,0.00025432,2]
[387581264,1758773451059,-245.0,0.00025438,2]
[387581265,1758773451069,-168.0,0.00025642,2]
[387581266,1758773451078,-762.78521023,0.00025648,2]
[387581267,1758773451088,-535.58936202,0.00025648,2]
[387581268,1758773451098,-652.94929056,0.00025648,2]
[387581269,1758773451108,-750.87112407,0.00025648,2]
[387581270,1758773451117,-1032.63267044,0.00025648,2]
[387581271,1758773451127,-580.50024175,0.00025649,2]
[387581272,1758773451136,-9050.0,0.00025649,2]
[387581273,1758773451146,-983.95919207,0.00025649,2]
[387581274,1758773451155,-523.86452495,0.0002565,2]
[387581275,1758773451165,-637.19973453,0.0002565,2]
[387581276,1758773451175,-989.11354866,0.0002565,2]
[387581277,1758773451184,-599.90324627,0.00025651,2]
[387581278,1758773451193,-715.64590729,0.00025653,2]
[387581279,1758773451203,-157.01,0.00025696,7]
[387581280,1758773451213,-194.0,0.00025703,2]
[387581281,1758773451224,-194.0,0.00025704,2]
[387581282,1758773451233,-264.3,0.00025921,5]
[387581283,1758773451243,-245.0,0.0002606,2]
[387581284,1758773451252,-245.0,0.00026131,7]
[387581285,1758773451262,-245.0,0.0002625,2]
[387581286,1758773451272,-245.0,0.00026298,2]
[387581287,1758773451282,-3058.08350699,0.00026331,5]
[387581288,1758773451294,-245.0,0.00026335,2]
[387581289,1758773451304,-150.02,0.00026582,7]
[387581290,1758773451315,-150.0,0.00026593,7]
[387581291,1758773451324,-157.01,0.0002662,7]
[387581292,1758773451411,-158.72691388,0.00026638,7]
[387581293,1758773451421,-163.28,0.00026638,7]
[387581294,1758773451432,-150.02,0.00026682,7]
[387581295,1758773451442,-1008.74,0.00026686,2]
[387581296,1758773451453,-150.0,0.00026693,7]
[387581297,1758773451462,-163.29341317,0.00026738,7]
[387581298,1758773451473,-150.02,0.00026782,7]
[387581299,1758773451482,-150.02,0.00026793,7]
[387581300,1758773451493,-2565.98,0.000268,2]
[387581301,1758773451502,-978.0,0.00026839,2]
[387581302,1758773451511,-2160.0,0.00026839,2]
[387581303,1758773451521,-635.0,0.00026839,2]
[387581304,1758773451531,-410.0,0.00026839,2]
[387581305,1758773451541,-150.02,0.00026882,7]
[387581306,1758773451551,-150.02,0.00026882,7]
[387581307,1758773451560,-150.02,0.00026982,7]
[387581308,1758773451570,-150.02,0.00027082,7]
[387581309,1758773451580,-1099.47,0.00027123,6]
[387581310,1758773451590,-1003.4811445,0.00027123,3]
[387581311,1758773451603,-150.02,0.00027182,7]
[387581312,1758773451612,-150.02,0.00027282,7]
[387581313,1758773451622,-150.0,0.00027345,30]
[387581314,1758773451632,-150.02,0.00027382,7]
[387581315,1758773451641,-512.1,0.00027397,60]
[387581316,1758773451651,-500.0,0.00027397,7]
[387581317,1758773451661,-500.0,0.00027397,7]
[387581318,1758773451671,-163.95415891,0.00027397,7]
[387581319,1758773451680,-150.0,0.00027397,5]
[387581320,1758773451690,-3058.08350699,0.00027403,7]
[387581321,1758773451700,-150.02,0.00027482,15]
[387581322,1758773451710,-264.3,0.00027485,6]
[387581323,1758773451720,-157.01,0.00027544,7]
[387581324,1758773451729,-150.02,0.00027582,15]
[387581325,1758773451739,-306.9855471,0.00027618,30]
[387581326,1758773451748,-153.0,0.00027618,30]
[387581327,1758773451758,-150.02,0.00027682,15]
[387581328,1758773451768,-150.02,0.00027782,15]
[387581329,1758773451777,-150.02,0.00027882,15]
[387581330,1758773451787,-1539.97145443,0.000279,2]
[387581331,1758773451797,-250.0,0.00027945,5]
[387581332,1758773451807,-43352.46474714,0.00027973,2]
[387581333,1758773451816,-151.0,0.00027973,7]
[387581334,1758773451826,-150.02,0.00027982,15]
[387581335,1758773451837,-170820.28564639,0.00028,2]
[387581336,1758773451906,-151.0,0.0001962,2]
[387581337,1758773451916,-151.0,0.00019894,2]
[387581338,1758773451926,-198.87602421,0.00020168,2]
[387581339,1758773451938,-2626.32,0.00024005,2]
[387581340,1758773451948,-2626.32,0.00024279,2]
[387581341,1758773451958,-2626.32,0.00024553,2]
[387581342,1758773451968,-2626.32,0.00024827,2]
[387581343,1758773451979,-2626.32,0.00025101,2]
[387581344,1758773451989,-2626.32,0.00025375,2]
[387581345,1758773451999,-2626.32851111,0.00025649,2]
[387581346,1758773452008,-148668.45572456,0.00028,2]
[387581347,1758773452020,-46613.95193103,0.00028,2]
[387581348,1758773452085,-863.00102452,0.00028,2]
[387581349,1758773452160,-480.0,0.00019346,2]
[387581350,1758773452171,-5796.07780066,0.00028,2]
[387581351,1758773452184,-422.748628,0.00028,2]
[387581352,1758773452196,-340.66259635,0.00028,2]
[387581353,1758773452209,-155330.07259849,0.00028,2]
[387581354,1758773452219,-584.99343906,0.00028,2]
[387581355,1758773452229,-30000.0,0.00028,30]
[387581356,1758773452239,-200.0,0.00028,120]
[387581357,1758773452249,-150.02,0.00028082,15]
[387581358,1758773452260,-150.02,0.00028182,15]
[387581359,1758773452270,-199.0,0.00028219,14]
[387581360,1758773452280,-150.02,0.00028282,15]
[387581361,1758773452290,-5000.0,0.00028343,3]
[387581362,1758773452299,-150.02,0.00028382,15]
[387581363,1758773452309,-168.63354543,0.00028456,2]
[387581364,1758773452319,-157.01,0.00028468,30]
[387581365,1758773452329,-3058.08350699,0.00028475,9]
[387581366,1758773452339,-150.02,0.00028482,15]
[387581367,1758773452352,-350.0,0.00028493,5]
[387581368,1758773452362,-150.02,0.00028582,15]
[387581369,1758773452372,-1260.93,0.00028592,2]
[387581370,1758773452381,-2565.98,0.000286,2]
[387581371,1758773452391,-150.03370891,0.00028682,15]
[387581372,1758773452401,-199.0,0.00028904,15]
[387581373,1758773452410,-800.0,0.00028944,2]
[387581374,1758773452420,-4506.70595168,0.0002899,2]
[387581375,1758773452430,-1099.47,0.00029041,8]
[387581376,1758773452440,-450.0,0.00029041,5]
[387581377,1758773452449,-294.84533163,0.00029286,7]
[387581378,1758773452459,-294.84533163,0.00029286,7]
[387581379,1758773452468,-294.84533163,0.00029286,7]
[387581380,1758773452478,-161.0,0.000293,120]
[387581381,1758773452487,-162.0,0.00029386,2]
[387581382,1758773452497,-2000.0,0.00029392,30]
[387581383,1758773452507,-150.0,0.00029392,2]
[387581384,1758773452517,-71719.85290407,0.00029392,20]
[387581385,1758773452528,-1497.25668317,0.00029392,20]
[387582072,1758774170422,213.96559809,0.00018721,2]
[387582083,1758774517810,6430.00599381,0.00015,2]
[387582084,1758774517836,868.23838781,0.00015,2]
[387582114,1758774632720,-161.79814984,0.00019244,2]
[387582116,1758774632729,-284.01641578,0.00019273,2]
[387582118,1758774632739,-121.16032186,0.00019273,2]
[387582194,1758774638661,-402.98327798,0.00019273,2]
[387582196,1758774638671,-4564.15612588,0.000193,2]
[387582198,1758774638683,-4149.58334033,0.000193,2]
[387582203,1758774638720,-5286.26053379,0.000193,2]
[387582205,1758774638729,-849.54,0.00019342,3]
[387582224,1758774638853,-480.0,0.00019343,2]
[387582226,1758774638863,-480.0,0.00019343,2]
[387582228,1758774638873,-480.0,0.00019343,2]
[387582230,1758774638883,-480.0,0.00019343,2]
[387582232,1758774638893,-794.32,0.00019343,2]
[387582234,1758774638902,-564.44633765,0.00019343,2]
[387582236,1758774638912,-490.13773502,0.00019344,2]
[387582238,1758774638921,-480.0,0.00019344,2]
[387582240,1758774638931,-393.47793677,0.00019344,2]
[387582242,1758774638943,-100.29098339,0.00019344,2]
[387582244,1758774638953,-500.0,0.00019344,2]
[387582246,1758774638962,-480.0,0.00019344,2]
[387582249,1758774638972,-588.44,0.00019344,2]
[387582250,1758774638981,-480.0,0.00019344,2]
[387582253,1758774638991,-480.0,0.00019344,2]
[387582255,1758774639000,-530.06,0.00019344,2]
[387582257,1758774639009,-499.35,0.00019344,2]
[387582259,1758774639019,-23.57292699,0.00019344,2]
[387582261,1758774639031,-456.42707301,0.00019344,2]
[387582263,1758774639041,-293.57292699,0.00019344,2]
[387582266,1758774639056,-332.11720013,0.00019344,2]
[387582267,1758774639066,-480.0,0.00019344,2]
[387582269,1758774639075,-480.0,0.00019344,2]
[387582271,1758774639084,-480.0,0.00019344,2]
[387582273,1758774639094,-480.0,0.00019344,2]
[387582275,1758774639103,-480.0,0.00019344,2]
[387582277,1758774639113,-480.0,0.00019344,2]
[387582279,1758774639123,-480.0,0.00019344,2]
[387582281,1758774639133,-480.0,0.00019344,2]
[387582284,1758774639142,-480.0,0.00019344,2]
[387582286,1758774639152,-480.0,0.00019344,2]
[387582287,1758774639161,-708.11,0.00019344,2]
[387582290,1758774639172,-480.0,0.00019344,2]
[387582292,1758774639181,-480.0,0.00019344,2]
[387582294,1758774639192,-195.1340158,0.00019344,2]
[387582296,1758774639201,-480.0,0.00019344,2]
[387582298,1758774639210,-265.19467055,0.00019344,2]
[387582300,1758774639219,-480.0,0.00019344,2]
[387582302,1758774639229,-480.0,0.00019344,2]
[387582304,1758774639238,-480.0,0.00019344,2]
[387582306,1758774639247,-480.0,0.00019344,2]
[387582308,1758774639257,-483.98288976,0.00019344,2]
[387582310,1758774639266,-821.8,0.00019344,2]
[387582312,1758774639275,-480.0,0.00019344,2]
[387582314,1758774639284,-492.06758118,0.00019344,2]
[387582316,1758774639293,-492.15442356,0.00019344,2]
[387582318,1758774639302,-949.31,0.00019344,2]
[387582320,1758774639312,-480.0,0.00019344,2]
[387582322,1758774639322,-480.0,0.00019344,2]
[387582324,1758774639331,-303.32616548,0.00019345,2]
[387582326,1758774639343,-399.64776656,0.00019345,2]
[387582328,1758774639352,-369.5317252,0.00019345,2]
[387582330,1758774639361,-485.37198796,0.00019345,2]
[387582332,1758774639371,-484.84926276,0.00019345,2]
[387582334,1758774639381,-480.0,0.00019345,2]
[387582336,1758774639391,-487.32180018,0.00019345,2]
[387582338,1758774639400,-480.0,0.00019345,2]
[387582340,1758774639410,-383.23791657,0.00019345,2]
[387582342,1758774639423,-480.0,0.00019345,2]
[387582344,1758774639432,-558.43249774,0.00019345,2]
[387582346,1758774639442,-215.87116998,0.00019345,2]
[387582348,1758774639451,-484.14712858,0.00019345,2]
[387582350,1758774639461,-496.23373243,0.00019345,2]
[387582352,1758774639470,-485.4117618,0.00019345,2]
[387582354,1758774639479,-482.1693026,0.00019345,2]
[387582356,1758774639488,-480.0,0.00019345,2]
[387582358,1758774639497,-388.46347517,0.00019345,2]
[387582360,1758774639506,-468.86304731,0.00019345,2]
[387582362,1758774639516,-480.0,0.00019345,2]
[387582364,1758774639525,-480.0,0.00019345,2]
[387582366,1758774639535,-480.0,0.00019345,2]
[387582368,1758774639544,-480.0,0.00019345,2]
[387582370,1758774639553,-492.15215985,0.00019345,2]
[387582372,1758774639563,-483.97608073,0.00019345,2]
[387582374,1758774639574,-481.01172291,0.00019345,2]
[387582376,1758774639584,-480.85675468,0.00019345,2]
[387582378,1758774639593,-548.438831,0.00019345,2]
[387582380,1758774639603,-480.0,0.00019345,2]
[387582382,1758774639612,-480.0,0.00019345,2]
[387582384,1758774639621,-480.0,0.00019345,2]
[387582386,1758774639630,-480.0,0.00019345,2]
[387582388,1758774639640,-480.0,0.00019345,2]
[387582390,1758774639649,-482.42097777,0.00019345,2]
[387582392,1758774639659,-484.29622595,0.00019345,2]
[387582393,1758774639668,-313.48774268,0.00019345,2]
[387582394,1758774639678,-496.54183942,0.00019345,2]
[387582395,1758774639687,-480.0,0.00019345,2]
[387582396,1758774639696,-480.0,0.00019345,2]
[387582397,1758774639705,-491.78978776,0.00019345,2]